fUST/lending_fUST_20250819
["ID","MTS","AMOUNT","RATE_DAILY","PERIOD"]
[380197302,1755605463158,-480.0,0.00019726,2]
[380197303,1755605463168,-480.0,0.00019726,2]
[380197304,1755605463178,-151.0,0.00019726,2]
[380197305,1755605463187,-151.0,0.00019726,2]
[380197306,1755605463197,-151.0,0.00019726,2]
[380197307,1755605463207,-891.355592,0.00019726,2]
[380197308,1755605463217,-891.355592,0.00019726,2]
[380197309,1755605463227,-480.0,0.00019726,2]
[380197310,1755605463237,-891.355592,0.00019726,2]
[380197311,1755605463247,-480.0,0.00019726,2]
[380197312,1755605463257,-480.0,0.00019726,2]
[380197313,1755605463266,-927.92,0.00019726,2]
[380197314,1755605463277,-480.0,0.00019726,2]
[380197315,1755605463286,-480.0,0.00019726,2]
[380197316,1755605463296,-2505.83,0.00019726,2]
[380197317,1755605463305,-151.0,0.00019726,2]
[380197318,1755605463315,-162.57126,0.00019726,2]
[380197319,1755605463325,-480.0,0.00019726,2]
[380197320,1755605463334,-151.0,0.00019726,2]
[380197321,1755605463344,-151.0,0.00019726,2]
[380197322,1755605463354,-480.0,0.00019726,2]
[380197323,1755605463363,-151.0,0.00019726,2]
[380197324,1755605463467,-480.0,0.00019726,2]
[380197325,1755605463478,-420.59133154,0.00019726,2]
[380197326,1755605463489,-480.0,0.00019726,2]
[380197327,1755605463498,-713.98,0.00019726,2]
[380197328,1755605463509,-480.0,0.00019726,2]
[380197329,1755605463519,-581.76,0.00019726,2]
[380197330,1755605463529,-480.0,0.00019726,2]
[380197331,1755605463538,-480.0,0.00019726,2]
[380197332,1755605463547,-569.33,0.00019726,2]
[380197333,1755605463557,-878.2,0.00019726,2]
[380197334,1755605463567,-480.0,0.00019726,2]
[380197335,1755605463577,-480.0,0.00019726,2]
[380197336,1755605463589,-480.0,0.00019726,2]
[380197337,1755605463598,-480.0,0.00019726,2]
[380197338,1755605463608,-480.0,0.00019726,2]
[380197339,1755605463618,-480.0,0.00019726,2]
[380197340,1755605463627,-480.0,0.00019726,2]
[380197341,1755605463637,-480.0,0.00019726,2]
[380197342,1755605463646,-480.0,0.00019726,2]
[380197343,1755605463656,-404.82673615,0.00019726,2]
[380197344,1755605463667,-2289.88,0.00019726,2]
[380197345,1755605463676,-480.0,0.00019726,2]
[380197346,1755605463686,-590.49129169,0.00019726,2]
[380197347,1755605463696,-480.0,0.00019726,2]
[380197348,1755605463705,-4893.12,0.00019726,2]
[380197349,1755605463715,-480.0,0.00019726,2]
[380197350,1755605463725,-292.154291,0.00019726,2]
[380197351,1755605463735,-292.154291,0.00019726,2]
[380197352,1755605463744,-292.154291,0.00019726,2]
[380197353,1755605463754,-480.0,0.00019726,2]
[380197354,1755605463764,-292.154291,0.00019726,2]
[380197355,1755605463773,-292.154291,0.00019726,2]
[380197356,1755605463783,-292.154291,0.00019726,2]
[380197357,1755605463793,-480.0,0.00019726,2]
[380197358,1755605463803,-480.0,0.00019726,2]
[380197359,1755605463812,-480.0,0.00019726,2]
[380197360,1755605463822,-480.0,0.00019726,2]
[380197361,1755605463831,-151.0,0.00019726,2]
[380197362,1755605463841,-480.0,0.00019726,2]
[380197363,1755605463851,-420.84557211,0.00019726,2]
[380197364,1755605463860,-7856.36,0.00019726,2]
[380197365,1755605463870,-151.0,0.00019726,2]
[380197366,1755605463879,-151.0,0.00019726,2]
[380197367,1755605463889,-480.0,0.00019726,2]
[380197368,1755605463898,-161.236394,0.00019726,2]
[380197369,1755605463908,-480.0,0.00019726,2]
[380197370,1755605463918,-168.0,0.00019729,2]
[380197371,1755605463928,-346.403396,0.00019742,2]
[380197372,1755605463937,-346.403396,0.00019742,2]
[380197373,1755605463947,-503.3733671,0.00019773,2]
[380197374,1755605463957,-1141.96026523,0.00019776,2]
[380197375,1755605463967,-166.59,0.00019792,2]
[380197376,1755605463977,-151.0,0.000198,2]
[380197377,1755605463987,-3146.0,0.00019807,2]
[380197378,1755605463997,-185.0,0.00019832,2]
[380197379,1755605464008,-168.0,0.00019838,2]
[380197380,1755605464019,-523.477759,0.00019863,2]
[380197381,1755605464028,-151.0,0.000199,2]
[380197382,1755605464038,-739.158206,0.000199,2]
[380197383,1755605464047,-255.830184,0.000199,2]
[380197384,1755605464057,-739.158206,0.000199,2]
[380197385,1755605464067,-5547.09068847,0.000199,2]
[380197386,1755605464077,-255.830184,0.000199,2]
[380197387,1755605464087,-151.0,0.000199,2]
[380197388,1755605464097,-151.0,0.000199,2]
[380197389,1755605464106,-198.705198,0.000199,2]
[380197390,1755605464116,-993.58946779,0.000199,2]
[380197391,1755605464126,-9570.96138231,0.000199,2]
[380197392,1755605464136,-168.0,0.00019917,2]
[380197393,1755605464146,-156.3845268,0.00019973,2]
[380197394,1755605464156,-156.38452681,0.00019973,2]
[380197395,1755605464166,-500.0,0.00019973,2]
[380197396,1755605464176,-501.62691226,0.00019973,2]
[380197397,1755605464186,-500.0,0.00019973,2]
[380197398,1755605464196,-500.0,0.00019973,2]
[380197399,1755605464210,-500.0,0.00019973,2]
[380197400,1755605464219,-500.0,0.00019973,2]
[380197401,1755605464229,-500.0,0.00019973,2]
[380197402,1755605464238,-503.54189409,0.00019973,2]
[380197403,1755605464247,-500.0,0.00019973,2]
[380197404,1755605464256,-500.0,0.00019973,2]
[380197405,1755605464265,-500.0,0.00019973,2]
[380197406,1755605464275,-500.0,0.00019973,2]
[380197407,1755605464284,-160.82021013,0.00019973,2]
[380197408,1755605464293,-500.0,0.00019973,2]
[380197409,1755605464302,-500.0,0.00019973,2]
[380197410,1755605464311,-500.0,0.00019973,2]
[380197411,1755605464321,-500.0,0.00019973,2]
[380197412,1755605464330,-500.0,0.00019973,2]
[380197413,1755605464343,-501.5074335,0.00019973,2]
[380197414,1755605464353,-503.94602657,0.00019973,2]
[380197415,1755605464362,-500.0,0.00019973,2]
[380197416,1755605464371,-500.0,0.00019973,2]
[380197417,1755605464380,-500.0,0.00019973,2]
[380197418,1755605464389,-500.0,0.00019973,2]
[380197419,1755605464398,-500.0,0.00019973,2]
[380197420,1755605464407,-500.0,0.00019973,2]
[380197421,1755605464416,-500.0,0.00019973,2]
[380197422,1755605464425,-1432.52071481,0.0001998,2]
[380197423,1755605464434,-151.0,0.0002,2]
[380197424,1755605464443,-500.0,0.0002,2]
[380197425,1755605464453,-151.0,0.0002,2]
[380197426,1755605464462,-151.0,0.0002,2]
[380197427,1755605464472,-151.0,0.0002,2]
[380197428,1755605464481,-500.0,0.0002,2]
[380197429,1755605464491,-216.67227951,0.0002,2]
[380197430,1755605464500,-676.0,0.0002,2]
[380197431,1755605464510,-500.0,0.0002,2]
[380197432,1755605464520,-604.0,0.0002,2]
[380197433,1755605464529,-256.87499009,0.0002,2]
[380197434,1755605464542,-1158.2390123,0.0002,2]
[380197435,1755605464556,-4014.95799434,0.0002,2]
[380197436,1755605464566,-640.63833458,0.0002,5]
[380197437,1755605464575,-1340.84812004,0.0002,3]
[380197438,1755605464586,-200.0,0.0002,2]
[380197439,1755605464595,-36540.1971488,0.0002,20]
[380197440,1755605464604,-8558.07811555,0.0002,2]
[380197441,1755605464613,-13445.95741754,0.0002,2]
[380197442,1755605464812,468.459344,0.00018286,2]
[380197443,1755605476658,600.0,0.00018586,2]
[380197444,1755605603844,234.0,0.0001861,2]
[380197446,1755605742490,600.0,0.00018312,2]
[380197447,1755605765703,644.08,0.000268,120]
[380197448,1755605832217,1000.0,0.00018174,2]
[380197449,1755606141320,166.59,0.00014384,2]
[380197455,1755606351723,68586.02980328,0.00018,2]
[380197458,1755606412573,234.229672,0.00017973,2]
[380197459,1755606530660,33672.62427432,0.00018,2]
[380197460,1755606530688,75354.78488286,0.00018,2]
[380197461,1755606542219,389.0,0.00028767,120]
[380197473,1755606632733,-300.0,0.00018819,2]
[380197474,1755606632743,-300.0,0.00018819,2]
[380197475,1755606632752,-300.0,0.00018819,2]
[380197476,1755606632761,-300.0,0.00018819,2]
[380197477,1755606632770,-232.0,0.00018819,2]
[380197478,1755606632780,-1200.0,0.00018819,2]
[380197479,1755606632788,-1200.0,0.0001882,2]
[380197480,1755606632797,-7023.51050721,0.00018821,2]
[380197481,1755606632809,-471.98987529,0.00018821,2]
[380197483,1755606632820,-522.32389176,0.00018821,2]
[380197524,1755606638600,-2888.86462427,0.00018821,2]
[380197527,1755606638621,-62727.36518036,0.00018821,2]
[380197529,1755606638631,-150.0,0.000189,2]
[380197530,1755606638640,-622.78236369,0.000189,2]
[380197531,1755606638649,-622.78236365,0.00018945,2]
[380197532,1755606638659,-622.78236365,0.00018989,2]
[380197533,1755606638668,-268.02,0.0001899,3]
[380197534,1755606638678,-804.06,0.0001899,3]
[380197535,1755606638687,-500.0,0.00018999,2]
[380197536,1755606638696,-198.49565018,0.00018999,2]
[380197537,1755606638706,-500.0,0.00018999,2]
[380197539,1755606638715,-500.0,0.00018999,2]
[380197541,1755606638724,-280.90725174,0.00018999,2]
[380197543,1755606638733,-63860.3080658,0.00019,2]
[380197545,1755606638744,-83708.19927235,0.00019,2]
[380197547,1755606638754,-697.84376097,0.00019,2]
[380197549,1755606638763,-150.0,0.0001902,2]
[380197550,1755606638772,-622.78236365,0.00019034,2]
[380197552,1755606638781,-622.78236365,0.00019078,2]
[380197554,1755606638790,-579.67881729,0.00019078,2]
[380197555,1755606638800,-660.17333058,0.00019166,2]
[380197556,1755606638809,-500.0,0.00019173,2]
[380197557,1755606638819,-394.78644593,0.00019173,2]
[380197558,1755606638830,-500.0,0.00019173,2]
[380197559,1755606638839,-501.65704101,0.00019173,2]
[380197560,1755606638848,-500.0,0.00019173,2]
[380197561,1755606638858,-181.69236082,0.00019173,2]
[380197563,1755606638868,-325.94993229,0.00019173,2]
[380197565,1755606638877,-500.0,0.00019173,2]
[380197567,1755606638886,-500.98423419,0.00019173,2]
[380197569,1755606638896,-243.36665212,0.00019173,2]
[380197571,1755606638905,-500.0,0.00019173,2]
[380197573,1755606638916,-500.0,0.00019173,2]
[380197575,1755606638925,-500.0,0.00019173,2]
[380197577,1755606638935,-500.0,0.00019173,2]
[380197579,1755606638944,-500.0,0.00019173,2]
[380197581,1755606638953,-500.0,0.00019173,2]
[380197583,1755606638963,-500.0,0.00019173,2]
[380197585,1755606638973,-500.0,0.00019173,2]
[380197587,1755606638983,-496.38862294,0.00019177,2]
[380197589,1755606638993,-480.0,0.00019178,2]
[380197591,1755606639004,-480.0,0.00019178,2]
[380197593,1755606639016,-314.66651881,0.00019178,2]
[380197595,1755606639025,-480.0,0.00019178,2]
[380197597,1755606639034,-480.0,0.00019178,2]
[380197599,1755606639045,-480.0,0.00019178,2]
[380197601,1755606639055,-461.46113306,0.00019178,2]
[380197603,1755606639064,-480.0,0.00019178,2]
[380197605,1755606639073,-480.0,0.00019178,2]
[380197607,1755606639083,-485.0246964,0.00019178,2]
[380197609,1755606639092,-480.68567924,0.00019178,2]
[380197611,1755606639101,-480.0,0.00019178,2]
[380197613,1755606639111,-480.0,0.00019178,2]
[380197615,1755606639120,-480.0,0.00019178,2]
[380197617,1755606639129,-480.0,0.00019178,2]
[380197619,1755606639139,-480.0,0.00019178,2]
[380197621,1755606639148,-480.0,0.00019178,2]
[380197623,1755606639157,-480.0,0.00019178,2]
[380197625,1755606639169,-480.0,0.00019178,2]
[380197627,1755606639178,-480.0,0.00019178,2]
[380197629,1755606639187,-480.0,0.00019178,2]
[380197631,1755606639196,-480.0,0.00019178,2]
[380197633,1755606639205,-480.0,0.00019178,2]
[380197634,1755606639215,-480.0,0.00019178,2]
[380197637,1755606639224,-480.0,0.00019178,2]
[380197639,1755606639235,-480.0,0.00019178,2]
[380197640,1755606639245,-480.0,0.00019178,2]
[380197642,1755606639254,-480.0,0.00019178,2]
[380197643,1755606639263,-480.0,0.00019178,2]
[380197644,1755606639273,-480.0,0.00019178,2]
[380197645,1755606639282,-480.0,0.00019178,2]
[380197646,1755606639292,-480.0,0.00019178,2]
[380197647,1755606639301,-480.0,0.00019178,2]
[380197648,1755606639310,-480.0,0.00019178,2]
[380197649,1755606639320,-480.0,0.00019178,2]
[380197650,1755606639330,-465.53999292,0.00019178,2]
[380197651,1755606639340,-480.0,0.00019178,2]
[380197652,1755606639349,-364.82527584,0.00019178,2]
[380197653,1755606639359,-480.0,0.00019178,2]
[380197654,1755606639368,-480.0,0.00019178,2]
[380197655,1755606639378,-480.0,0.00019178,2]
[380197656,1755606639387,-480.0,0.00019178,2]
[380197657,1755606639396,-482.15648392,0.00019178,2]
[380197658,1755606639405,-480.0,0.00019178,2]
[380197659,1755606639415,-480.0,0.00019178,2]
[380197660,1755606639424,-480.0,0.00019178,2]
[380197661,1755606639433,-480.0,0.00019178,2]
[380197662,1755606639442,-480.0,0.00019178,2]
[380197663,1755606639452,-480.0,0.00019178,2]
[380197664,1755606639461,-480.0,0.00019178,2]
[380197665,1755606639470,-480.0,0.00019178,2]
[380197666,1755606639479,-480.0,0.00019178,2]
[380197667,1755606639488,-480.0,0.00019178,2]
[380197668,1755606639497,-480.0,0.00019178,2]
[380197669,1755606639507,-480.57317437,0.00019178,2]
[380197670,1755606639516,-480.0,0.00019178,2]
[380197671,1755606639525,-278.91068869,0.00019178,2]
[380197672,1755606639534,-480.0,0.00019178,2]
[380197673,1755606639543,-480.0,0.00019178,2]
[380197674,1755606639553,-480.0,0.00019178,2]
[380197675,1755606639562,-480.0,0.00019178,2]
[380197676,1755606639572,-480.0,0.00019178,2]
[380197677,1755606639581,-480.0,0.00019178,2]
[380197678,1755606639662,-480.0,0.00019178,2]
[380197679,1755606639671,-441.1049547,0.00019178,2]
[380197680,1755606639680,-480.0,0.00019178,2]
[380197681,1755606639689,-480.0,0.00019178,2]
[380197682,1755606639698,-480.0,0.00019178,2]
[380197683,1755606639707,-480.0,0.00019178,2]
[380197684,1755606639716,-480.0,0.00019178,2]
[380197685,1755606639725,-480.0,0.00019178,2]
[380197686,1755606639734,-480.0,0.00019178,2]
[380197687,1755606639743,-480.0,0.00019178,2]
[380197688,1755606639752,-480.0,0.00019178,2]
[380197689,1755606639761,-480.0,0.00019178,2]
[380197690,1755606639770,-461.38701534,0.00019178,2]
[380197691,1755606639779,-480.0,0.00019178,2]
[380197692,1755606639788,-480.0,0.00019178,2]
[380197693,1755606639797,-480.0,0.00019178,2]
[380197694,1755606639806,-480.0,0.00019178,2]
[380197695,1755606639815,-480.0,0.00019178,2]
[380197696,1755606639825,-480.0,0.00019178,2]
[380197697,1755606639834,-480.0,0.00019178,2]
[380197698,1755606639843,-451.89445263,0.00019178,2]
[380197699,1755606639853,-442.80215248,0.00019178,2]
[380197700,1755606639862,-480.0,0.00019178,2]
[380197701,1755606639872,-480.0,0.00019178,2]
[380197702,1755606639881,-441.16948472,0.00019178,2]
[380197703,1755606639890,-480.0,0.00019178,2]
[380197704,1755606639900,-480.0,0.00019178,2]
[380197705,1755606639909,-445.96175428,0.00019178,2]
[380197706,1755606639918,-480.0,0.00019178,2]
[380197707,1755606639929,-468.21008992,0.00019178,2]
[380197708,1755606639938,-480.0,0.00019178,2]
[380197709,1755606639947,-480.0,0.00019178,2]
[380197710,1755606639958,-480.0,0.00019178,2]
[380197711,1755606639967,-480.0,0.00019178,2]
[380197712,1755606639978,-480.0,0.00019178,2]
[380197713,1755606639988,-480.0,0.00019178,2]
[380197714,1755606639998,-462.93264732,0.00019178,2]
[380197715,1755606640007,-480.0,0.00019178,2]
[380197716,1755606640017,-480.0,0.00019178,2]
[380197717,1755606640026,-480.0,0.00019178,2]
[380197718,1755606640036,-480.0,0.00019178,2]
[380197719,1755606640045,-488.72897337,0.00019178,2]
[380197720,1755606640055,-442.81588569,0.00019178,2]
[380197721,1755606640064,-480.0,0.00019178,2]
[380197722,1755606640076,-480.0,0.00019178,2]
[380197723,1755606640087,-480.0,0.00019178,2]
[380197724,1755606640095,-480.0,0.00019178,2]
[380197725,1755606640104,-480.0,0.00019178,2]
[380197726,1755606640114,-480.0,0.00019178,2]
[380197727,1755606640123,-480.0,0.00019178,2]
[380197728,1755606640133,-463.02613268,0.00019178,2]
[380197729,1755606640142,-480.0,0.00019178,2]
[380197731,1755606640151,-480.0,0.00019178,2]
[380197732,1755606640163,-183.58348007,0.00019178,2]
[380197733,1755606640174,-664.22,0.00019178,2]
[380197734,1755606640183,-664.22,0.00019178,2]
[380197735,1755606640192,-480.0,0.00019178,2]
[380197736,1755606640202,-480.0,0.00019178,2]
[380197738,1755606640212,-664.22,0.00019178,2]
[380197739,1755606640221,-664.22,0.00019178,2]
[380197740,1755606640231,-664.22,0.00019178,2]
[380197741,1755606640242,-664.22,0.00019178,2]
[380197742,1755606640253,-664.22,0.00019178,2]
[380197743,1755606640262,-664.22,0.00019178,2]
[380197744,1755606640272,-664.22,0.00019178,2]
[380197745,1755606640281,-664.22,0.00019178,2]
[380197746,1755606640290,-664.22,0.00019178,2]
[380197747,1755606640299,-664.22,0.00019178,2]
[380197748,1755606640309,-664.22,0.00019178,2]
[380197749,1755606640318,-664.22,0.00019178,2]
[380197750,1755606640330,-664.22,0.00019178,2]
[380197751,1755606640339,-664.22,0.00019178,2]
[380197752,1755606640349,-664.22,0.00019178,2]
[380197753,1755606640358,-664.22,0.00019178,2]
[380197754,1755606640368,-664.22,0.00019178,2]
[380197755,1755606640377,-664.22,0.00019178,2]
[380197756,1755606640387,-664.22,0.00019178,2]
[380197757,1755606640397,-664.22,0.00019178,2]
[380197758,1755606640406,-664.22,0.00019178,2]
[380197759,1755606640415,-664.26,0.00019178,2]
[380197760,1755606640425,-480.0,0.00019178,2]
[380197761,1755606640434,-480.0,0.00019178,2]
[380197762,1755606640443,-380.76721588,0.00019178,2]
[380197763,1755606640452,-480.0,0.00019178,2]
[380197764,1755606640461,-480.0,0.00019178,2]
[380197765,1755606640471,-534.44213534,0.00019178,2]
[380197766,1755606640480,-480.0,0.00019178,2]
[380197767,1755606640489,-480.0,0.00019178,2]
[380197768,1755606640498,-480.0,0.00019178,2]
[380197769,1755606640507,-486.36,0.00019178,2]
[380197770,1755606640516,-480.0,0.00019178,2]
[380197771,1755606640526,-480.0,0.00019178,2]
[380197772,1755606640535,-480.0,0.00019178,2]
[380197773,1755606640544,-480.0,0.00019178,2]
[380197774,1755606640553,-480.0,0.00019178,2]
[380197775,1755606640562,-480.0,0.00019178,2]
[380197776,1755606640571,-480.0,0.00019178,2]
[380197777,1755606640585,-480.0,0.00019178,2]
[380197778,1755606640594,-480.0,0.00019178,2]
[380197779,1755606640603,-480.0,0.00019178,2]
[380197780,1755606640612,-480.0,0.00019178,2]
[380197781,1755606640622,-480.0,0.00019178,2]
[380197782,1755606640632,-480.0,0.00019178,2]
[380197783,1755606640642,-480.0,0.00019178,2]
[380197784,1755606640652,-480.0,0.00019178,2]
[380197785,1755606640662,-540.09,0.00019178,2]
[380197786,1755606640672,-480.0,0.00019178,2]
[380197787,1755606640744,-480.0,0.00019178,2]
[380197788,1755606640760,-480.0,0.00019178,2]
[380197789,1755606640770,-480.0,0.00019178,2]
[380197790,1755606640780,-480.0,0.00019178,2]
[380197791,1755606640789,-480.0,0.00019178,2]
[380197792,1755606640799,-480.0,0.00019178,2]
[380197793,1755606640808,-480.0,0.00019178,2]
[380197794,1755606640818,-480.0,0.00019178,2]
[380197795,1755606640832,-480.0,0.00019178,2]
[380197796,1755606640841,-480.0,0.00019178,2]
[380197797,1755606640851,-480.0,0.00019178,2]
[380197798,1755606640860,-461.45994006,0.00019178,2]
[380197799,1755606640870,-480.0,0.00019178,2]
[380197800,1755606640880,-480.0,0.00019178,2]
[380197801,1755606640891,-480.0,0.00019178,2]
[380197802,1755606640900,-480.0,0.00019178,2]
[380197803,1755606640910,-480.0,0.00019178,2]
[380197804,1755606640920,-480.0,0.00019178,2]
[380197805,1755606640929,-480.0,0.00019178,2]
[380197806,1755606640939,-467.6348417,0.00019178,2]
[380197807,1755606640948,-864.15,0.00019178,2]
[380197808,1755606640959,-480.0,0.00019178,2]
[380197809,1755606640969,-480.0,0.00019178,2]
[380197810,1755606640979,-500.0,0.00019178,2]
[380197811,1755606640988,-500.0,0.00019178,2]
[380197812,1755606640997,-457.07016158,0.00019178,2]
[380197813,1755606641006,-577.24780417,0.00019178,2]
[380197814,1755606641015,-303.70207332,0.00019178,2]
[380197815,1755606641023,-480.0,0.00019178,2]
[380197816,1755606641033,-480.0,0.00019178,2]
[380197817,1755606641042,-480.0,0.00019178,2]
[380197818,1755606641051,-480.0,0.00019178,2]
[380197819,1755606641061,-480.0,0.00019178,2]
[380197820,1755606641071,-480.0,0.00019178,2]
[380197821,1755606641085,-480.0,0.00019178,2]
[380197822,1755606641096,-1000.0,0.00019178,2]
[380197823,1755606641106,-480.0,0.00019178,2]
[380197824,1755606641117,-480.0,0.00019178,2]
[380197825,1755606641127,-480.0,0.00019178,2]
[380197826,1755606641136,-480.0,0.00019178,2]
[380197827,1755606641146,-460.49247425,0.00019178,2]
[380197828,1755606641156,-480.0,0.00019178,2]
[380197829,1755606641165,-460.64116734,0.00019178,2]
[380197830,1755606641177,-480.0,0.00019178,2]
[380197831,1755606641186,-480.0,0.00019178,2]
[380197832,1755606641195,-480.0,0.00019178,2]
[380197833,1755606641205,-462.58942858,0.00019178,2]
[380197834,1755606641216,-569.92274895,0.00019178,2]
[380197835,1755606641226,-480.0,0.00019178,2]
[380197836,1755606641236,-480.0,0.00019178,2]
[380197837,1755606641252,-480.0,0.00019178,2]
[380197838,1755606641270,-480.0,0.00019178,2]
[380197839,1755606641288,-480.0,0.00019178,2]
[380197840,1755606641307,-480.0,0.00019178,2]
[380197841,1755606641328,-480.0,0.00019178,2]
[380197842,1755606641347,-546.45678673,0.00019178,2]
[380197843,1755606641365,-480.0,0.00019178,2]
[380197844,1755606641380,-480.0,0.00019178,2]
[380197845,1755606641397,-480.0,0.00019178,2]
[380197846,1755606641416,-480.0,0.00019178,2]
[380197847,1755606641436,-480.0,0.00019178,2]
[380197848,1755606641450,-480.0,0.00019178,2]
[380197849,1755606641470,-480.0,0.00019178,2]
[380197850,1755606641485,-480.0,0.00019178,2]
[380197851,1755606641499,-543.23159899,0.00019178,2]
[380197852,1755606641514,-480.0,0.00019178,2]
[380197853,1755606641529,-480.0,0.00019178,2]
[380197854,1755606641545,-480.0,0.00019178,2]
[380197855,1755606641564,-480.0,0.00019178,2]
[380197856,1755606641585,-480.0,0.00019178,2]
[380197857,1755606641602,-475.30450188,0.00019178,2]
[380197858,1755606641618,-480.0,0.00019178,2]
[380197859,1755606641634,-480.0,0.00019178,2]
[380197860,1755606641650,-508.47,0.00019178,2]
[380197861,1755606641665,-480.0,0.00019178,2]
[380197862,1755606641681,-480.0,0.00019178,2]
[380197863,1755606641695,-480.0,0.00019178,2]
[380197864,1755606641711,-461.14799148,0.00019178,2]
[380197865,1755606641726,-480.0,0.00019178,2]
[380197866,1755606641741,-480.0,0.00019178,2]
[380197867,1755606641759,-515.79,0.00019178,2]
[380197869,1755606641775,-480.0,0.00019178,2]
[380197871,1755606641790,-482.7148608,0.00019178,2]
[380197873,1755606641806,-480.0,0.00019178,2]
[380197875,1755606641821,-480.0,0.00019178,2]
[380197877,1755606641840,-480.78265318,0.00019178,2]
[380197878,1755606641855,-480.0,0.00019178,2]
[380197879,1755606641870,-480.0,0.00019178,2]
[380197881,1755606641884,-480.59084869,0.00019178,2]
[380197883,1755606641899,-480.0,0.00019178,2]
[380197884,1755606641914,-480.0,0.00019178,2]
[380197885,1755606641929,-602.3,0.00019178,2]
[380197886,1755606641943,-602.3,0.00019178,2]
[380197887,1755606641959,-602.3,0.00019178,2]
[380197888,1755606641975,-602.3,0.00019178,2]
[380197889,1755606641991,-602.3,0.00019178,2]
[380197890,1755606642006,-602.3,0.00019178,2]
[380197891,1755606642022,-480.0,0.00019178,2]
[380197892,1755606642037,-602.3,0.00019178,2]
[380197893,1755606642134,-500.0,0.00019178,2]
[380197894,1755606642177,-500.0,0.00019178,2]
[380197895,1755606642187,-480.0,0.00019178,2]
[380197896,1755606642196,-500.0,0.00019178,2]
[380197897,1755606642207,-500.0,0.00019178,2]
[380197898,1755606642216,-500.0,0.00019178,2]
[380197899,1755606642225,-500.0,0.00019178,2]
[380197900,1755606642235,-500.0,0.00019178,2]
[380197901,1755606642245,-480.0,0.00019178,2]
[380197902,1755606642254,-500.0,0.00019178,2]
[380197903,1755606642264,-602.3,0.00019178,2]
[380197904,1755606642274,-500.0,0.00019178,2]
[380197905,1755606642283,-602.3,0.00019178,2]
[380197906,1755606642293,-480.0,0.00019178,2]
[380197907,1755606642302,-500.0,0.00019178,2]
[380197908,1755606642312,-480.0,0.00019178,2]
[380197909,1755606642321,-602.3,0.00019178,2]
[380197910,1755606642333,-602.3,0.00019178,2]
[380197911,1755606642343,-500.0,0.00019178,2]
[380197912,1755606642352,-602.3,0.00019178,2]
[380197913,1755606642362,-480.0,0.00019178,2]
[380197914,1755606642371,-500.0,0.00019178,2]
[380197915,1755606642380,-602.3,0.00019178,2]
[380197916,1755606642389,-602.3,0.00019178,2]
[380197917,1755606642399,-500.0,0.00019178,2]
[380197918,1755606642409,-602.3,0.00019178,2]
[380197919,1755606642418,-500.0,0.00019178,2]
[380197920,1755606642427,-500.0,0.00019178,2]
[380197921,1755606642437,-500.0,0.00019178,2]